[Event "41st Amateur D7"]
[Site "ChessGUI4"]
[Date "2013.07.11"]
[Round "34.5"]
[White "Butcher 1.64 64-bit"]
[Black "Gibbon 2.57a 64-bit"]
[Result "0-1"]
[BlackElo "2251"]
[ECO "B30"]
[EventDate "2013.??.??"]
[TimeControl "40/1500:40/1500:40/1500"]
[WhiteElo "2355"]

{ i5 Quad } 1.e4 { [%eval 0,1] [%emt 0:00:00] } 1...c5
{ [%eval 0,1] [%emt 0:00:00] } 2.Nf3 { [%eval 0,1] [%emt 0:00:00] } 2...Nc6
{ [%eval 0,1] [%emt 0:00:00] } 3.Nc3 { [%eval 0,1] [%emt 0:00:00] } 3...g6
{ [%eval 0,1] [%emt 0:00:00] } 4.Bb5 { [%eval 0,1] [%emt 0:00:00] } 4...Bg7
{ [%eval 0,1] [%emt 0:00:00] } 5.O-O { [%eval 0,1] [%emt 0: 00:00] } 5...Nf6
{ [%eval 0,1] [%emt 0:00:00] } 6.Bxc6 { [%eval 0,1] [%emt 0:00:00] } 6...dxc6
{ [%eval 0,1] [%emt 0:00:00] } 7.h3 { [%eval 0,1] [%emt 0:00:00] } 7...Nd7
{ [%eval 0,1] [%emt 0:00:00] } 8.d3 { [%eval 0,1] [%emt 0:00:00] } 8...Nf8
{ [%eval 0,1] [%emt 0:00:00] } 9.Bf4 { [%eval 28,12] [%emt 0:01:03] } 9...Ne6
{ [%eval -15,15] [%emt 0:01:01] (Ne6) } 10.Be5
{ [%eval 20,12] [%emt 0:01:00] (Bg3) } 10...Bxe5
{ [%eval 4,15] [%emt 0:01:01] (f6) } 11.Nxe5
{ [%eval 39,13] [%emt 0:00:58] (Nxe5) } 11...Nd4
{ [%eval -4,15] [%emt 0:01:33] (Qc7) } 12.a4
{ [%eval 40,11] [%emt 0:00:52] (Ne2) } 12...Qc7
{ [%eval 8,15] [%emt 0:00:42] (Qd6) } 13.Nf3
{ [%eval 32,12] [%emt 0: 01:05] (Nf3) } 13...O-O
{ [%eval 10,15] [%emt 0:00:54] (Qf4) } 14.a5
{ [%eval 26,12] [%emt 0:01:03] (a5) } 14...Rd8
{ [%eval 7,14] [%emt 0:00:44] (Bd7) } 15.Nd2
{ [%eval 25,11] [%emt 0:01:03] (Nxd4) } 15...Be6
{ [%eval 15,12] [%emt 0:00:33] (e5) } 16.Na4
{ [%eval 37,11] [%emt 0:00:56] (Re1) } 16...Qd6
{ [%eval 14,12] [%emt 0:00:23] (Qd6) } 17.f4
{ [%eval 68,12] [%emt 0:01:00] (c3) } 17...b6
{ [%eval 37,12] [%emt 0:00:36] (c4) } 18.Rf2
{ [%eval 53,11] [%emt 0:00:59] (b3) } 18...Qb8
{ [%eval 19,12] [%emt 0: 00:33] (f6) } 19.c3
{ [%eval 149,12] [%emt 0:00:54] (c3) } 19...Nb5
{ [%eval 12,13] [%emt 0:00:16] (Nb5) } 20.f5
{ [%eval 138,11] [%emt 0:00:58] (f5) } 20...Bd7
{ [%eval -5,12] [%emt 0:00:57] (Bc8) } 21.Nc4
{ [%eval 141,11] [%emt 0:00:48] (Qf3) } 21...Nd6
{ [%eval 17,11] [%emt 0:00:16] (Nd6) } 22.fxg6
{ [%eval 153,11] [%emt 0:00:48] (fxg6) } 22...hxg6
{ [%eval 14,12] [%emt 0:00:17] (fxg6) } 23.Qf3
{ [%eval 127,12] [%emt 0:01:22] (Qf3) } 23...Be6
{ [%eval 0,13] [%emt 0:00:47] (Be6) } 24.Ne5
{ [%eval 138,11] [%emt 0:00:44] (Ne5) } 24...Qc7
{ [%eval -16,12] [%emt 0:00:30] (Qc7) } 25.Qg3
{ [%eval 114,10] [%emt 0:00:43] (Qf4) } 25...Ne8
{ [%eval 22,12] [%emt 0:00:25] (Ne8) } 26.Qf4
{ [%eval 96,11] [%emt 0:00:43] (Raf1) } 26...Kg7
{ [%eval 33,10] [%emt 0:00:11] (Qd6) } 27.Qg5
{ [%eval 60,11] [%emt 0:01:13] (Qg5) } 27...Nf6
{ [%eval 0,11] [%emt 0: 00:32] (Nf6) } 28.Rff1
{ [%eval 80,10] [%emt 0:00:38] (Raf1) } 28...c4
{ [%eval 67,11] [%emt 0:00:13] (Bb3) } 29.dxc4
{ [%eval 67,11] [%emt 0:00:37] (dxc4) } 29...Nxe4
{ [%eval 71,12] [%emt 0:00:18] (Nxe4) } 30.Qf4
{ [%eval 61,11] [%emt 0:00:30] (Qf4) } 30...Nd2
{ [%eval 50,12] [%emt 0:00:17] (Nd2) } 31.Rf2
{ [%eval 58,10] [%emt 0: 00:36] (Rf2) } 31...Qd6
{ [%eval 23,12] [%emt 0:00:35] (b5) } 32.b4
{ [%eval 11,9] [%emt 0:00:35] (13) } 32...f6
{ [%eval 68,11] [%emt 0:00:08] (Nxc4) } 33.Nxc6
{ [%eval 9,11] [%emt 0:00:29] (Nxc6) } 33...Qxc6
{ [%eval 50,12] [%emt 0:00:08] (Qxc6) } 34.Rxd2
{ [%eval 18,11] [%emt 0:00:27] (Rxd2) } 34...g5
{ [%eval 46,12] [%emt 0:00:14] (Rxd2) } 35.Qe3
{ [%eval -7,12] [%emt 0:00:25] (Qf2) } 35...Rxd2
{ [%eval 32,12] [%emt 0:00:13] (Rxd2) } 36.Qxd2
{ [%eval -4,11] [%emt 0:00:24] (Qxd2) } 36...Bxc4
{ [%eval 29,12] [%emt 0:00:09] (Bxc4) } 37.Nb2
{ [%eval -10,11] [%emt 0:00:22] (Nb2) } 37...Bf7
{ [%eval 29,12] [%emt 0:00:12] (Bf7) } 38.c4
{ [%eval -21,10] [%emt 0:00:21] (c4) } 38...Rb8
{ [%eval 66,12] [%emt 0:00:15] (e5) } 39.Kh1
{ [%eval -19,10] [%emt 0:00: 19] (b5) } 39...Bxc4
{ [%eval 63,12] [%emt 0:00:09] (Qd6) } 40.axb6
{ [%eval -35,10] [%emt 0:00:14] (axb6) } 40...axb6
{ [%eval 55,14] [%emt 0:00:20] (axb6) } 41.Ra7
{ [%eval -43,12] [%emt 0:00:49] (Ra7) } 41...Re8
{ [%eval 73,15] [%emt 0:01:50] (Re8) } 42.Nxc4
{ [%eval -73,14] [%emt 0:01:25] (Qc3) } 42...Qxc4
{ [%eval 109,14] [%emt 0:00: 08] (Qxc4) } 43.Qd6
{ [%eval -86,13] [%emt 0:01:22] (Qd7) } 43...Qe4
{ [%eval 117,15] [%emt 0:00:56] (Qe4) } 44.Kh2
{ [%eval -104,13] [%emt 0:01:20] (b5) } 44...g4
{ [%eval 147,14] [%emt 0:00:42] (g4) } 45.h4
{ [%eval -159,12] [%emt 0:00:44] (Qxb6) } 45...Qe1
{ [%eval 179,15] [%emt 0:01:14] (Kg6) } 46.g3
{ [%eval -197,13] [%emt 0:00:49] (Qg3) } 46...Qf2+
{ [%eval 195,15] [%emt 0:00:30] (Qf2) } 47.Kh1
{ [%eval -114,8] [%emt 0:00:01] (Kh1) } 47...Kf8
{ [%eval 186,16] [%emt 0:01:21] (Kf8) } 48.Qc7
{ [%eval -197,14] [%emt 0:00:49] (Qc7) } 48...Qf1+
{ [%eval 186,15] [%emt 0:00: 27] (Qe1) } 49.Kh2
{ [%eval -119,8] [%emt 0:00:00] (Kh2) } 49...Qe2+
{ [%eval 203,17] [%emt 0:01:16] (Qf2) } 50.Kh1
{ [%eval -175,14] [%emt 0:00:50] (Kh1) } 50...Qe1+
{ [%eval 202,16] [%emt 0:00:43] (Qe1) } 51.Kg2
{ [%eval -199,14] [%emt 0:00:49] (Kh2) } 51...Qd2+
{ [%eval 202,15] [%emt 0:01:23] (Qxb4) } 52.Kf1
{ [%eval -202,14] [%emt 0:00:49] (Kh1) } 52...Qxb4
{ [%eval 222,15] [%emt 0:00:22] (Qxb4) } 53.Qc2
{ [%eval -209,13] [%emt 0:00:48] (Rb7) } 53...Rd8
{ [%eval 272,14] [%emt 0:00:24] (Qd6) } 54.Ra4
{ [%eval -234,13] [%emt 0:00:41] (Ra4) } 54...Qb5+
{ [%eval 277,14] [%emt 0:00: 21] (Qb5) } 55.Kg2
{ [%eval -238,12] [%emt 0:00:40] (Kg2) } 55...Qd5+
{ [%eval 275,15] [%emt 0:00:33] (Qd5) } 56.Kh2
{ [%eval -226,14] [%emt 0:00:40] (Kh2) } 56...Qd2+
{ [%eval 280,16] [%emt 0:00:33] (Qf3) } 57.Qxd2
{ [%eval -218,17] [%emt 0:01:06] (Qxd2) } 57...Rxd2+
{ [%eval 282,17] [%emt 0:00:07] (Rxd2) } 58.Kg1
{ [%eval -220,14] [%emt 0:00:38] (Kg1) } 58...e5
{ [%eval 263,18] [%emt 0:00:31] (f5) } 59.Rxg4
{ [%eval -165,15] [%emt 0:01:05] (h5) } 59...Rd4
{ [%eval 252,18] [%emt 0:00:23] (Rd4) } 60.Rxd4
{ [%eval -208,19] [%emt 0:01:02] (Rg6) } 60...exd4
{ [%eval 636,21] [%emt 0: 00:04] (exd4) } 61.Kf2
{ [%eval -501,23] [%emt 0:00:59] (Kf2) } 61...b5
{ [%eval 687, 27] [%emt 0:00:31] (b5) } 62.Ke2
{ [%eval -614,23] [%emt 0:00:55] (13) } 62...b4
{ [%eval 890,26] [%emt 0:00:19] (b4) } 63.Kd3
{ [%eval -752,22] [%emt 0:00:51] (Kd3) } 63...b3
{ [%eval 986,25] [%emt 0:00:18] (b3) } 64.Kd2
{ [%eval -672,20] [%emt 0:00:47] (Kd2) } 0-1

[Event "41st Amateur D7"]
[Site "ChessGUI4"]
[Date "2013.07.11"]
[Round "35.1"]
[White "Carballo 0.8"]
[Black "MadChess 1.2"]
[Result "1-0"]
[BlackElo "2200"]
[ECO "B76"]
[EventDate "2013.??.??"]
[TimeControl "40/1500:40/1500:40/1500"]
[WhiteElo "2273"]

{ i5 Quad } 1.e4 { [%eval 0,1] [%emt 0:00:00] } 1...c5
{ [%eval 0,1] [%emt 0:00:00] } 2.Nf3 { [%eval 0,1] [%emt 0:00:00] } 2...d6
{ [%eval 0,1] [%emt 0:00:00] } 3.d4 { [%eval 0,1] [%emt 0:00:00] } 3...cxd4
{ [%eval 0,1] [%emt 0:00:00] } 4.Nxd4 { [%eval 0,1] [%emt 0:00:00] } 4...Nf6
{ [%eval 0,1] [%emt 0:00:00] } 5.Nc3 { [%eval 0,1] [%emt 0:00:00] } 5...g6
{ [%eval 0,1] [%emt 0:00:00] } 6.Be3 { [%eval 0,1] [%emt 0:00: 00] } 6...Bg7
{ [%eval 0,1] [%emt 0:00:00] } 7.f3 { [%eval 0,1] [%emt 0:00:00] } 7...Nc6
{ [%eval 0,1] [%emt 0:00:00] } 8.Qd2 { [%eval 0,1] [%emt 0:00:00] } 8...O-O
{ [%eval 0, 1] [%emt 0:00:00] } 9.O-O-O { [%eval 29,14] [%emt 0:00:37] }
9...Bd7 { [%eval -25,10] [%emt 0:00:24] (Nxd4) } 10.Kb1
{ [%eval 39,13] [%emt 0:00:36] (Nxc6) } 10...a6
{ [%eval -19,11] [%emt 0:00:54] (Nxd4) } 11.h4
{ [%eval 36,13] [%emt 0:00:35] (Nxc6) } 11...Rc8
{ [%eval -15,10] [%emt 0:00:27] (Ne5) } 12.g4
{ [%eval 40,13] [%emt 0:00:34] (Nxc6) } 12...Na5
{ [%eval -30,10] [%emt 0:00:39] (Ne5) } 13.h5
{ [%eval 70, 13] [%emt 0:00:33] (Be2) } 13...Re8
{ [%eval -65,10] [%emt 0:01:22] (b5) } 14.hxg6
{ [%eval 85,12] [%emt 0:00:32] (h6) } 14...hxg6
{ [%eval -69,10] [%emt 0:00:27] (hxg6) } 15.Bh6
{ [%eval 92,13] [%emt 0:00:32] (Bh6) } 15...Bh8
{ [%eval -48,11] [%emt 0:00:39] (Bh8) } 16.Bg5
{ [%eval 96,12] [%emt 0:00:31] (Qh2) } 16...Bg7
{ [%eval -73,10] [%emt 0:00:18] (Nc6) } 17.Qh2
{ [%eval 105,13] [%emt 0:00:30] (b3) } 17...e5
{ [%eval -75,12] [%emt 0:00:50] (Nc4) } 18.Bh6
{ [%eval 143,13] [%emt 0:00:29] (Bh6) } 18...Bh8
{ [%eval -51,11] [%emt 0:00:16] (Bh8) } 19.Nb3
{ [%eval 155,12] [%emt 0:00:29] (Nb3) } 19...Be6
{ [%eval -102,10] [%emt 0:00:29] (Nxb3) } 20.Bf4
{ [%eval 169,13] [%emt 0:00:28] (Nd5) } 20...Bg7
{ [%eval -142,12] [%emt 0:00:49] (Bg7) } 21.Bxe5
{ [%eval 186,13] [%emt 0:00:27] (Bxe5) } 21...Bxb3
{ [%eval -66,11] [%emt 0:00:27] (Bxb3) } 22.Rxd6
{ [%eval 173,14] [%emt 0:00:26] (Rxd6) } 22...Qe7
{ [%eval -206,12] [%emt 0:01:02] (Qe7) } 23.Bxf6
{ [%eval 308,14] [%emt 0:00:26] (Bxf6) } 23...Bxc2+
{ [%eval -150,13] [%emt 0:00:33] (Bxf6) } 24.Ka1
{ [%eval 401,16] [%emt 0:00:25] (Kxc2) } 24...Bxf6
{ [%eval -432,12] [%emt 0:00:36] (Bxf6) } 25.Nd5
{ [%eval 401,15] [%emt 0:00:24] (Nd5) } 25...Be5
{ [%eval -461,12] [%emt 0:00:29] (Bxb2) } 26.Nxe7+
{ [%eval 637,15] [%emt 0:00:24] (Nxe7) } 26...Rxe7
{ [%eval -592,15] [%emt 0:01:00] (Rxe7) } 27.Qh7+
{ [%eval 650,16] [%emt 0:00:23] (Qh7) } 27...Kf8
{ [%eval -592,15] [%emt 0:00:00] (Kf8) } 28.Qh6+
{ [%eval 635,15] [%emt 0:00:23] } 28...Bg7
{ [%eval -612,13] [%emt 0:00:28] (Bg7) } 29.Qd2
{ [%eval 650,15] [%emt 0:00:22] (Qd2) } 29...Ree8
{ [%eval -612,12] [%emt 0:00:22] (Ree8) } 1-0

[Event "41st Amateur D7"]
[Site "ChessGUI4"]
[Date "2013.07.11"]
[Round "35.2"]
[White "Shallow 1.0 64-bit"]
[Black "ProChess 1.02AD"]
[Result "0-1"]
[BlackElo "2244"]
[ECO "A50"]
[EventDate "2013.??.??"]
[TimeControl "40/1500:40/1500:40/1500"]
[WhiteElo "2200"]

{ i5 Quad } 1.c4 { [%eval 0,1] [%emt 0:00:00] } 1...Nf6
{ [%eval 0,1] [%emt 0:00:00] } 2.d4 { [%eval 0,1] [%emt 0:00:00] } 2...c6
{ [%eval 0,1] [%emt 0:00:00] } 3.Bf4 { [%eval 0,1] [%emt 0:00:00] } 3...d6
{ [%eval 0,1] [%emt 0:00:00] } 4.Nc3 { [%eval 0,1] [%emt 0:00:00] } 4...Nbd7
{ [%eval 0,1] [%emt 0:00:00] } 5.Nf3 { [%eval 0,1] [%emt 0: 00:00] } 5...Qa5
{ [%eval 0,1] [%emt 0:00:00] } 6.Bd2 { [%eval 0,1] [%emt 0:00:00] } 6...e5
{ [%eval 0,1] [%emt 0:00:00] } 7.e3 { [%eval 0,1] [%emt 0:00:00] } 7...Qc7
{ [%eval 0, 1] [%emt 0:00:00] } 8.Qc2 { [%eval 0,1] [%emt 0:00:00] } 8...Be7
{ [%eval 0,1] [%emt 0:00:00] } 9.Bd3 { [%eval 24,14] [%emt 0:00:42] } 9...Nb6
{ [%eval -28,12] [%emt 0:02: 02] (h6) } 10.c5
{ [%eval 21,14] [%emt 0:00:42] (Ne4) } 10...dxc5
{ [%eval -20,12] [%emt 0:00:42] (dxc5) } 11.dxe5
{ [%eval 18,14] [%emt 0:00:42] (Nxe5) } 11...Ng4
{ [%eval -3,12] [%emt 0:01:01] (Ng4) } 12.Bxh7
{ [%eval 18,13] [%emt 0:00:42] (Ne2) } 12...g6
{ [%eval 0,12] [%emt 0:00:41] (Nc4) } 13.Bxg6
{ [%eval 72,13] [%emt 0: 00:42] (Bxg6) } 13...fxg6
{ [%eval -10,12] [%emt 0:00:49] (fxg6) } 14.Qxg6+
{ [%eval 69,12] [%emt 0:00:42] (Qxg6) } 14...Kd8
{ [%eval -18,12] [%emt 0:00:58] (Kd8) } 15.Rd1
{ [%eval 133,13] [%emt 0:01:30] (Ne2) } 15...Nxe5
{ [%eval -99,12] [%emt 0:02:19] (Nxe5) } 16.Nxe5
{ [%eval 129,13] [%emt 0:00:41] (Nxe5) } 16...Qxe5
{ [%eval 11,13] [%emt 0:00:56] (Qxe5) } 17.Na4
{ [%eval 17,13] [%emt 0:00:41] (Na4) } 17...Nd5
{ [%eval 11,12] [%emt 0:00:35] (Nd5) } 18.Ba5+
{ [%eval 17,12] [%emt 0:00:41] (Ba5) } 18...Kd7
{ [%eval 11,12] [%emt 0:00:24] (Kd7) } 19.Bc3
{ [%eval 17,12] [%emt 0: 00:41] (Bc3) } 19...Qh5
{ [%eval 1,13] [%emt 0:00:35] (Qh5) } 20.Nxc5+
{ [%eval 26,12] [%emt 0:00:41] (Nxc5) } 20...Bxc5
{ [%eval -6,13] [%emt 0:00:24] (Bxc5) } 21.Qg7+
{ [%eval 25,12] [%emt 0:00:41] (Qg7) } 21...Kd6
{ [%eval 5,13] [%emt 0:00:29] (Kd6) } 22.Qxh8
{ [%eval 21,12] [%emt 0:00:41] (Qxh8) } 22...Qxh8
{ [%eval 20,15] [%emt 0:00:24] (Qxh8) } 23.Bxh8
{ [%eval -4,15] [%emt 0:00:41] (Bxh8) } 23...Bg4
{ [%eval 33,14] [%emt 0:00:19] (Bg4) } 24.f3
{ [%eval -30,14] [%emt 0:00:41] (f3) } 24...Rxh8
{ [%eval 48,13] [%emt 0:00:23] (Rxh8) } 25.fxg4
{ [%eval -43,13] [%emt 0:00:41] (fxg4) } 25...Re8
{ [%eval 55,13] [%emt 0:00:47] (Re8) } 26.Rd3
{ [%eval -45,13] [%emt 0:00:41] (Ke2) } 26...Rxe3+
{ [%eval 72,12] [%emt 0:00:18] (Kc7) } 27.Kd2
{ [%eval -35, 13] [%emt 0:00:41] (Kd2) } 27...Bb4+
{ [%eval 73,13] [%emt 0:00:33] (b5) } 28.Kc2
{ [%eval -30,13] [%emt 0:00:41] (Kc2) } 28...Re2+
{ [%eval 76,13] [%emt 0:00:26] (Re2) } 29.Kb1
{ [%eval -64,14] [%emt 0:00:41] (Kb3) } 29...Rxg2
{ [%eval 96,12] [%emt 0:00: 17] (Rxg2) } 30.a3
{ [%eval -70,14] [%emt 0:00:41] (Rg3) } 30...Bc5
{ [%eval 123,13] [%emt 0:00:21] (Bc5) } 31.h3
{ [%eval -67,13] [%emt 0:00:41] (Rg3) } 31...Bg1
{ [%eval 120,13] [%emt 0:00:25] (a5) } 32.Rd1
{ [%eval -66,13] [%emt 0:00:41] (Rd1) } 32...Bh2
{ [%eval 118,13] [%emt 0:00:27] (Bh2) } 33.Rc1
{ [%eval -68,14] [%emt 0:00:41] (Rc1) } 33...Be5
{ [%eval 123,13] [%emt 0:00:35] (Be5) } 34.Rc2
{ [%eval -73, 14] [%emt 0:00:41] (Rc2) } 34...Rg3
{ [%eval 125,12] [%emt 0:00:11] (Rg3) } 35.Rch2
{ [%eval -75,13] [%emt 0:00:41] (Rd2) } 35...c5
{ [%eval 131,13] [%emt 0:00:22] (b5) } 36.Ka2
{ [%eval -148,13] [%emt 0:00:49] (Rd2) } 36...Nf4
{ [%eval 157,13] [%emt 0:00: 30] (Nf4) } 37.Kb1
{ [%eval -153,13] [%emt 0:00:39] (a4) } 37...c4
{ [%eval 171,12] [%emt 0:00:11] (b6) } 38.Ka2
{ [%eval -170,13] [%emt 0:00:39] (Ka2) } 38...Ke6
{ [%eval 201,12] [%emt 0:00:20] (b5) } 39.Rc2
{ [%eval -165,14] [%emt 0:00:39] (Rc2) } 39...b5
{ [%eval 203,12] [%emt 0:00:23] (b5) } 40.h4
{ [%eval -170,14] [%emt 0: 00:39] (h4) } 40...Rxg4
{ [%eval 200,12] [%emt 0:00:10] (Rxg4) } 41.h5
{ [%eval -164, 14] [%emt 0:00:37] (h5) } 41...Rg7
{ [%eval 195,13] [%emt 0:00:58] (Rg7) } 42.h6
{ [%eval -162,14] [%emt 0:00:37] (h6) } 42...Rh7
{ [%eval 195,14] [%emt 0:01:00] (Rh7) } 43.b3
{ [%eval -162,13] [%emt 0:00:37] (Kb1) } 43...c3
{ [%eval 208,14] [%emt 0:01:54] (Nd5) } 44.b4
{ [%eval -159,14] [%emt 0:00:37] (Kb1) } 44...Kd5
{ [%eval 210,13] [%emt 0:00:49] (a6) } 45.Rch2
{ [%eval -160,13] [%emt 0:00:37] (Kb3) } 45...Ne6
{ [%eval 206, 13] [%emt 0:01:16] (Kc4) } 46.Rh5
{ [%eval -192,13] [%emt 0:00:37] (Rc2) } 46...c2
{ [%eval 253,14] [%emt 0:00:39] (c2) } 47.Re1
{ [%eval -202,14] [%emt 0:00:37] (Re1) } 47...Kd4
{ [%eval 263,14] [%emt 0:00:38] (Kd4) } 48.Kb3
{ [%eval -209,14] [%emt 0:00:37] (Kb2) } 48...Nf4
{ [%eval 263,15] [%emt 0:01:02] (Nf4) } 49.Rhxe5
{ [%eval -225,15] [%emt 0:00:37] (Rhxe5) } 49...c1=Q
{ [%eval 263,16] [%emt 0:01:16] (c1=Q) } 50.R5e4+
{ [%eval -225,16] [%emt 0:00:37] (Rxc1) } 50...Kd3
{ [%eval 287,17] [%emt 0:00:43] (Kd3) } 51.Rxc1
{ [%eval -232,16] [%emt 0:00:37] (Rxc1) } 51...Kxe4
{ [%eval 283,17] [%emt 0:02:52] (Kxe4) } 52.Rc6
{ [%eval -233,15] [%emt 0:00:37] (Rh1) } 52...Ne2
{ [%eval 291,17] [%emt 0:00:42] (Nd5) } 53.Re6+
{ [%eval -235,16] [%emt 0:00:37] (Ra6) } 53...Kd3
{ [%eval 293,17] [%emt 0:01:29] (Kd3) } 54.Kb2
{ [%eval -235,16] [%emt 0:00:37] (Rf6) } 54...Rc7
{ [%eval 297,18] [%emt 0:07:31] (Nd4) } 55.Rd6+
{ [%eval -276,14] [%emt 0:00:37] (Rd6) } 55...Nd4
{ [%eval 348,18] [%emt 0:00: 45] (Nd4) } 56.Kb1
{ [%eval -277,15] [%emt 0:00:37] (Kb1) } 56...Rf7
{ [%eval 381,17] [%emt 0:01:47] (Rf7) } 57.Rd8
{ [%eval -386,15] [%emt 0:00:37] (Rd5) } 57...Kc3
{ [%eval 395,16] [%emt 0:00:16] (Kc3) } 58.Re8
{ [%eval -403,15] [%emt 0:00:37] (Re8) } 58...Rf1+
{ [%eval 411,17] [%emt 0:00:08] (Rf1) } 59.Ka2
{ [%eval -401,15] [%emt 0:00:37] (Ka2) } 59...Rf2+
{ [%eval 411,17] [%emt 0:00:10] (Rf2) } 60.Kb1
{ [%eval -412,15] [%emt 0:00:37] (Kb1) } 60...Nc2
{ [%eval 431,16] [%emt 0:00:23] (Nc2) } 61.Rc8+
{ [%eval -434,15] [%emt 0:00:37] (Rc8) } 61...Kb3
{ [%eval 427,16] [%emt 0:00: 12] (Kb3) } 62.Kc1
{ [%eval -439,15] [%emt 0:00:37] (Kc1) } 62...Rh2
{ [%eval 436,16] [%emt 0:00:09] (Rh2) } 63.Rc5
{ [%eval -439,13] [%emt 0:00:37] (Rc7) } 63...Nxa3
{ [%eval 446,14] [%emt 0:00:09] (Rxh6) } 64.Rc6
{ [%eval -461,14] [%emt 0:00:37] (Rc6) } 64...Kxb4
{ [%eval 466,14] [%emt 0:00:06] (Nc4) } 65.Re6
{ [%eval -454,12] [%emt 0:00:37] (Ra6) } 65...Nc4
{ [%eval 479,13] [%emt 0:00:06] (Nc4) } 66.Kd1
{ [%eval -463,12] [%emt 0:00:37] (Rf6) } 66...Kc3
{ [%eval 577,14] [%emt 0:00:07] (Kc3) } 67.Rc6
{ [%eval -479,11] [%emt 0:00:37] (Rf6) } 67...b4
{ [%eval 961,14] [%emt 0:00: 05] (a5) } 68.Rc7
{ [%eval -852,12] [%emt 0:00:37] (Rc5) } 68...b3
{ [%eval 1503,14] [%emt 0:00:08] (b3) } 69.Rb7
{ [%eval -950,9] [%emt 0:00:37] (Rb7) } 69...b2
{ [%eval -31786,14] [%emt 0:00:20] (b2) } 70.Rb5
{ [%eval 30783,10] [%emt 0:00:49] (h7) } 0-1